[Event "15e Open International de Quenza"]
[Site "Quenza"]
[Date "2026.07.05"]
[Round "6.3"]
[White "RATIER-FONTANA, Matteo"]
[Black "FEDORCHUK, Sergey A."]
[Result "0-1"]
[TimeControl "5min+3s"]
[WhiteTitle "-"]
[BlackTitle "GM"]
[WhiteFideId "-"]
[BlackFideId "-"]
[WhiteElo "2368"]
[BlackElo "2530"]

1. Nf3 {[%clk 00:05:03]} Nf6 {[%clk 00:05:03]} {[%emt 00:00:02]} 2. d4 {[%clk
00:05:03]} e6 {[%clk 00:05:03]} {[%emt 00:00:01]} 3. Bf4 {[%clk 00:05:03]}
{[%emt 00:00:02]} Be7 {[%clk 00:04:57]} {[%emt 00:00:09]} 4. h3 {[%clk
00:05:03]} {[%emt 00:00:02]} c5 {[%clk 00:04:57]} {[%emt 00:00:02]} 5. e3
{[%clk 00:05:03]} {[%emt 00:00:01]} cxd4 {[%clk 00:04:40]} {[%emt 00:00:21]} 6.
exd4 {[%clk 00:05:03]} {[%emt 00:00:01]} b6 {[%clk 00:04:40]} {[%emt 00:00:01]}
7. c3 {[%clk 00:05:03]} {[%emt 00:00:02]} Bb7 {[%clk 00:04:32]} {[%emt
00:00:11]} 8. Nbd2 {[%clk 00:05:03]} {[%emt 00:00:01]} d6 {[%clk 00:04:32]}
{[%emt 00:00:03]} 9. Be2 {[%clk 00:04:54]} {[%emt 00:00:12]} a6 {[%clk
00:04:32]} {[%emt 00:00:02]} 10. O-O {[%clk 00:04:54]} {[%emt 00:00:02]} O-O
{[%clk 00:04:29]} {[%emt 00:00:06]} 11. Ne1 {[%clk 00:04:29]} {[%emt 00:00:28]}
Qc7 {[%clk 00:04:18]} {[%emt 00:00:15]} 12. Bh2 {[%clk 00:04:24]} {[%emt
00:00:08]} Nbd7 {[%clk 00:04:09]} {[%emt 00:00:12]} 13. Bf3 {[%clk 00:04:24]}
{[%emt 00:00:02]} b5 {[%clk 00:04:09]} {[%emt 00:00:03]} 14. Bxb7 {[%clk
00:04:22]} {[%emt 00:00:05]} Qxb7 {[%clk 00:04:09]} 15. Nd3 {[%clk 00:04:22]}
{[%emt 00:00:02]} Nb6 {[%clk 00:04:02]} {[%emt 00:00:10]} 16. Qf3 {[%clk
00:03:39]} {[%emt 00:00:46]} Qxf3 {[%clk 00:03:44]} {[%emt 00:00:21]} 17. Nxf3
{[%clk 00:03:39]} {[%emt 00:00:01]} a5 {[%clk 00:03:38]} {[%emt 00:00:10]} 18.
Rfe1 {[%clk 00:03:23]} {[%emt 00:00:19]} Rfc8 {[%clk 00:03:38]} {[%emt
00:00:02]} 19. a3 {[%clk 00:03:20]} {[%emt 00:00:06]} Nfd5 {[%clk 00:03:32]}
{[%emt 00:00:07]} 20. Rac1 {[%clk 00:03:09]} {[%emt 00:00:15]} h6 {[%clk
00:03:26]} {[%emt 00:00:09]} 21. Nd2 {[%clk 00:03:09]} {[%emt 00:00:02]} Rc6
{[%clk 00:03:20]} {[%emt 00:00:09]} 22. Kf1 {[%clk 00:02:57]} {[%emt 00:00:15]}
Rac8 {[%clk 00:03:20]} {[%emt 00:00:02]} 23. Ke2 {[%clk 00:01:47]} {[%emt
00:01:12]} Bg5 {[%clk 00:03:20]} {[%emt 00:00:02]} 24. f4 {[%clk 00:01:42]}
{[%emt 00:00:08]} Bf6 {[%clk 00:03:20]} {[%emt 00:00:01]} 25. Bg1 {[%clk
00:01:32]} {[%emt 00:00:13]} Nc4 {[%clk 00:03:00]} {[%emt 00:00:23]} 26. Nxc4
{[%clk 00:01:13]} {[%emt 00:00:22]} bxc4 {[%clk 00:03:00]} {[%emt 00:00:02]} 27.
Nf2 {[%clk 00:01:07]} {[%emt 00:00:09]} Nxf4+ {[%clk 00:03:00]} {[%emt
00:00:01]} 28. Kf3 {[%clk 00:01:07]} Nd5 {[%clk 00:02:44]} {[%emt 00:00:19]} 29.
Ne4 {[%clk 00:01:06]} {[%emt 00:00:04]} Be7 {[%clk 00:02:44]} 30. Re2 {[%clk
00:01:06]} {[%emt 00:00:02]} Rb8 {[%clk 00:02:43]} {[%emt 00:00:04]} 31. Bh2
{[%clk 00:01:00]} {[%emt 00:00:09]} Rb3 {[%clk 00:02:38]} {[%emt 00:00:09]} 32.
g4 {[%clk 00:00:57]} {[%emt 00:00:06]} Nb6 {[%clk 00:02:24]} {[%emt 00:00:17]}
33. Rcc2 {[%clk 00:00:46]} {[%emt 00:00:15]} Na4 {[%clk 00:02:22]} {[%emt
00:00:05]} 34. Nf2 {[%clk 00:00:20]} {[%emt 00:00:28]} Bf6 {[%clk 00:01:56]}
{[%emt 00:00:29]} 35. Kg2 {[%clk 00:00:20]} {[%emt 00:00:02]} Bg5 {[%clk
00:01:26]} {[%emt 00:00:33]} 36. Bg3 {[%clk 00:00:17]} {[%emt 00:00:07]} Nb6
{[%clk 00:01:18]} {[%emt 00:00:11]} 37. Ne4 {[%clk 00:00:17]} {[%emt 00:00:01]}
Be7 {[%clk 00:01:05]} {[%emt 00:00:16]} 38. Rf2 {[%clk 00:00:17]} {[%emt
00:00:03]} Na4 {[%clk 00:01:01]} {[%emt 00:00:06]} 39. Rfe2 {[%clk 00:00:14]}
{[%emt 00:00:05]} Rcb6 {[%clk 00:00:58]} {[%emt 00:00:07]} 40. d5 {[%clk
00:00:08]} {[%emt 00:00:09]} exd5 {[%clk 00:00:56]} {[%emt 00:00:05]} 41. Nf2
{[%clk 00:00:08]} Bf6 {[%clk 00:00:53]} {[%emt 00:00:06]} 42. Nd1 {[%clk
00:00:08]} Nc5 {[%clk 00:00:48]} {[%emt 00:00:08]} 43. Bf2 {[%clk 00:00:08]}
{[%emt 00:00:03]} Rb8 {[%clk 00:00:47]} 44. Bg3 {[%clk 00:00:07]} {[%emt
00:00:08]} R3b6 {[%clk 00:00:46]} 45. Bf2 {[%clk 00:00:07]} {[%emt 00:00:05]}
Nd3 {[%emt 00:00:02]} 46. Bxb6 {[%clk 00:00:07]} {[%emt 00:00:02]} Rxb6 {[%clk
00:00:38]} {[%emt 00:00:11]} 47. Kf3 {[%clk 00:00:07]} {[%emt 00:00:02]} Be5
{[%clk 00:00:38]} {[%emt 00:00:02]} 48. Nf2 {[%clk 00:00:07]} {[%emt 00:00:02]}
Nc5 {[%clk 00:00:37]} {[%emt 00:00:04]} 49. Red2 {[%clk 00:00:05]} {[%emt
00:00:04]} Na4 {[%clk 00:00:37]} {[%emt 00:00:01]} 50. Rxd5 {[%clk 00:00:05]}
{[%emt 00:00:02]} Nxb2 {[%clk 00:00:31]} {[%emt 00:00:08]} 51. Rxa5 {[%clk
00:00:05]} {[%emt 00:00:02]} Rb3 {[%clk 00:00:31]} 52. Ra8+ {[%clk 00:00:05]}
{[%emt 00:00:01]} Kh7 {[%clk 00:00:31]} 53. Ne4 {[%clk 00:00:05]} d5 {[%clk
00:00:26]} {[%emt 00:00:08]} 54. Nc5 {[%clk 00:00:05]} {[%emt 00:00:03]} Rb5
{[%clk 00:00:25]} {[%emt 00:00:04]} 55. Nd7 {[%clk 00:00:05]} {[%emt 00:00:03]}
Bd6 {[%clk 00:00:20]} {[%emt 00:00:08]} 56. Nf8+ {[%clk 00:00:05]} Bxf8 {[%clk
00:00:20]} {[%emt 00:00:01]} 57. Rxf8 {[%clk 00:00:05]} Rb3 {[%clk 00:00:20]}
{[%emt 00:00:02]} 58. Rd8 {[%clk 00:00:05]} {[%emt 00:00:01]} Na4 {[%clk
00:00:20]} {[%emt 00:00:03]} 59. Kg2 {[%clk 00:00:05]} {[%emt 00:00:03]} Nxc3
{[%clk 00:00:20]} {[%emt 00:00:01]} 60. a4 {[%clk 00:00:05]} {[%emt 00:00:01]}
Nxa4 {[%clk 00:00:20]} {[%emt 00:00:03]} 61. Rxd5 {[%clk 00:00:05]} {[%emt
00:00:02]} c3 {[%clk 00:00:20]} {[%emt 00:00:01]} 62. Re5 {[%clk 00:00:05]}
{[%emt 00:00:02]} f6 {[%clk 00:00:20]} {[%emt 00:00:02]} 63. Ree2 {[%clk
00:00:05]} Kg6 {[%clk 00:00:18]} {[%emt 00:00:05]} 64. Kf3 {[%clk 00:00:05]}
Nb6 {[%clk 00:00:18]} {[%emt 00:00:02]} 65. Re3 {[%clk 00:00:04]} {[%emt
00:00:04]} Nd5 {[%clk 00:00:18]} {[%emt 00:00:01]} 66. Rd3 {[%clk 00:00:04]}
Rb5 {[%clk 00:00:18]} {[%emt 00:00:01]} 67. Rcxc3 {[%clk 00:00:04]} {[%emt
00:00:02]} Nxc3 {[%clk 00:00:18]} {[%emt 00:00:01]} 68. Rxc3 {[%clk 00:00:04]}
h5 {[%clk 00:00:18]} {[%emt 00:00:03]} 69. Kg3 {[%clk 00:00:04]} Kg5 {[%clk
00:00:18]} {[%emt 00:00:02]} 70. gxh5 {[%clk 00:00:04]} {[%emt 00:00:03]} Kxh5
{[%clk 00:00:18]} {[%emt 00:00:02]} 71. Ra3 {[%clk 00:00:04]} g5 {[%clk
00:00:16]} {[%emt 00:00:05]} 72. Ra8 {[%clk 00:00:04]} {[%emt 00:00:02]} Rb3+
{[%clk 00:00:16]} {[%emt 00:00:01]} 73. Kg2 {[%clk 00:00:04]} Kg6 {[%clk
00:00:16]} {[%emt 00:00:01]} 74. Ra5 {[%clk 00:00:04]} Re3 {[%clk 00:00:16]}
{[%emt 00:00:02]} 75. Rb5 {[%clk 00:00:04]} {[%emt 00:00:01]} Kh5 {[%clk
00:00:16]} {[%emt 00:00:01]} 76. Rb8 {[%clk 00:00:04]} Rc3 {[%clk 00:00:15]}
{[%emt 00:00:04]} 77. Rd8 {[%clk 00:00:04]} Kg6 {[%clk 00:00:14]} {[%emt
00:00:04]} 78. Ra8 {[%clk 00:00:04]} Kf5 {[%clk 00:00:14]} 79. Ra5+ {[%clk
00:00:04]} Kf4 {[%clk 00:00:14]} 80. Ra4+ {[%clk 00:00:04]} {[%emt 00:00:02]}
Ke5 {[%clk 00:00:14]} 81. Ra5+ {[%emt 00:00:01]} Ke4 {[%clk 00:00:14]} {[%emt
00:00:01]} 82. Ra4+ {[%clk 00:00:04]} {[%emt 00:00:02]} Kd5 {[%clk 00:00:11]}
{[%emt 00:00:05]} 83. Ra6 {[%clk 00:00:04]} {[%emt 00:00:03]} Rc6 {[%clk
00:00:11]} {[%emt 00:00:01]} 84. Ra5+ {[%clk 00:00:04]} {[%emt 00:00:02]} Ke4
{[%clk 00:00:11]} 85. Ra4+ {[%clk 00:00:04]} Kf5 {[%clk 00:00:11]} {[%emt
00:00:01]} 86. Ra5+ {[%clk 00:00:04]} Kg6 {[%clk 00:00:11]} 87. Ra8 {[%clk
00:00:04]} Rc4 {[%clk 00:00:11]} {[%emt 00:00:03]} 88. Kg3 {[%clk 00:00:04]}
{[%emt 00:00:01]} Rd4 {[%clk 00:00:11]} {[%emt 00:00:02]} 89. Rb8 {[%clk
00:00:04]} Re4 {[%clk 00:00:11]} 90. Rc8 {[%clk 00:00:04]} Kf5 {[%clk
00:00:11]} 91. Rc5+ {[%clk 00:00:04]} Re5 {[%clk 00:00:11]} 92. Rc8 {[%clk
00:00:04]} Re3+ {[%clk 00:00:11]} 93. Kg2 {[%clk 00:00:04]} Kf4 {[%clk
00:00:11]} 94. Rc4+ {[%clk 00:00:04]} Re4 {[%clk 00:00:11]} 95. Rc2 {[%clk
00:00:04]} Rd4 {[%clk 00:00:11]} {[%emt 00:00:01]} 96. Rf2+ {[%clk 00:00:04]}
Ke5 {[%clk 00:00:11]} 97. Ra2 Ke4 {[%clk 00:00:11]} 98. Re2+ {[%clk 00:00:04]}
{[%emt 00:00:01]} Kf5 {[%clk 00:00:10]} {[%emt 00:00:04]} 99. Rf2+ {[%clk
00:00:04]} Rf4 {[%clk 00:00:10]} 100. Ra2 {[%clk 00:00:04]} {[%emt 00:00:01]}
Rd4 {[%clk 00:00:10]} {[%emt 00:00:02]} 101. Rf2+ {[%clk 00:00:04]} Ke5 {[%clk
00:00:10]} 102. Re2+ {[%clk 00:00:04]} {[%emt 00:00:01]} Re4 {[%clk 00:00:10]}
103. Ra2 {[%clk 00:00:04]} f5 {[%clk 00:00:10]} 104. Rb2 {[%clk 00:00:04]}
{[%emt 00:00:03]} Re3 {[%clk 00:00:10]} {[%emt 00:00:01]} 105. Rb5+ {[%clk
00:00:04]} {[%emt 00:00:02]} Kf4 {[%clk 00:00:10]} 106. Rb4+ {[%clk 00:00:04]}
Re4 {[%clk 00:00:10]} 107. Rb2 {[%clk 00:00:04]} Rd4 {[%clk 00:00:10]} {[%emt
00:00:01]} 108. Ra2 {[%clk 00:00:04]} Rd3 {[%clk 00:00:10]} 109. Ra4+ {[%clk
00:00:04]} {[%emt 00:00:01]} Ke3 {[%clk 00:00:10]} {[%emt 00:00:01]} 110. Kg3
{[%clk 00:00:04]} {[%emt 00:00:03]} Ke2+ {[%clk 00:00:09]} {[%emt 00:00:04]}
111. Kg2 {[%clk 00:00:04]} 0-1

[Event "15e Open International de Quenza"]
[Site "Quenza"]
[Date "2026.07.05"]
[Round "6.16"]
[White "DELADERRIERE, Calypso"]
[Black "ERCOLI, Andria"]
[Result "0-1"]
[TimeControl "5min+3s"]
[WhiteTitle "-"]
[BlackTitle "-"]
[WhiteFideId "-"]
[BlackFideId "-"]
[WhiteElo "2074"]
[BlackElo "1762"]

1. e4 {[%clk 00:05:03]} {[%emt 00:00:37]} c5 {[%clk 00:05:03]} {[%emt
00:00:01]} 2. Nf3 {[%clk 00:05:03]} {[%emt 00:00:02]} g6 {[%clk 00:05:03]}
{[%emt 00:00:03]} 3. d4 {[%clk 00:05:03]} {[%emt 00:00:05]} Bg7 {[%clk
00:05:03]} {[%emt 00:00:03]} 4. Be3 {[%clk 00:05:03]} {[%emt 00:00:19]} Qb6
{[%clk 00:04:55]} {[%emt 00:00:43]} 5. b3 {[%clk 00:04:54]} {[%emt 00:00:13]}
Nc6 {[%clk 00:04:41]} {[%emt 00:00:17]} 6. c3 {[%clk 00:04:37]} {[%emt
00:00:19]} cxd4 {[%clk 00:04:26]} {[%emt 00:00:17]} 7. cxd4 {[%clk 00:04:29]}
{[%emt 00:00:12]} d5 {[%clk 00:04:06]} {[%emt 00:00:23]} 8. exd5 {[%clk
00:03:59]} {[%emt 00:00:33]} Qa5+ {[%clk 00:04:06]} {[%emt 00:00:02]} 9. Qd2
{[%clk 00:03:59]} {[%emt 00:00:03]} Qxd5 {[%clk 00:04:02]} {[%emt 00:00:07]} 10.
Bc4 {[%clk 00:03:54]} {[%emt 00:00:07]} Qd6 {[%clk 00:03:36]} {[%emt 00:00:29]}
11. Nc3 {[%clk 00:03:49]} {[%emt 00:00:09]} Bg4 {[%clk 00:03:20]} {[%emt
00:00:19]} 12. Ne4 {[%clk 00:03:19]} {[%emt 00:00:33]} Qd7 {[%clk 00:02:47]}
{[%emt 00:00:36]} 13. Nc5 {[%clk 00:03:00]} {[%emt 00:00:22]} Qc7 {[%clk
00:02:36]} {[%emt 00:00:14]} 14. Ng5 {[%clk 00:02:06]} {[%emt 00:00:57]} e6
{[%clk 00:02:25]} {[%emt 00:00:14]} 15. h3 {[%clk 00:02:03]} {[%emt 00:00:05]}
h6 {[%clk 00:02:13]} {[%emt 00:00:15]} 16. Nxf7 {[%clk 00:01:41]} {[%emt
00:00:25]} Qxf7 {[%clk 00:02:11]} {[%emt 00:00:04]} 17. hxg4 {[%clk 00:01:41]}
{[%emt 00:00:02]} Nd8 {[%clk 00:02:00]} {[%emt 00:00:13]} 18. Rd1 {[%clk
00:01:20]} {[%emt 00:00:24]} b6 {[%clk 00:02:00]} {[%emt 00:00:03]} 19. Ne4
{[%clk 00:01:18]} {[%emt 00:00:04]} Qe7 {[%clk 00:01:52]} {[%emt 00:00:11]} 20.
Bb5+ {[%clk 00:01:14]} {[%emt 00:00:07]} Kf8 {[%clk 00:01:50]} {[%emt
00:00:05]} 21. Bf4 {[%clk 00:01:14]} {[%emt 00:00:02]} Nf7 {[%clk 00:01:49]}
{[%emt 00:00:04]} 22. O-O {[%clk 00:01:10]} {[%emt 00:00:08]} Rd8 {[%clk
00:01:49]} {[%emt 00:00:02]} 23. Be3 {[%clk 00:00:58]} {[%emt 00:00:15]} Nf6
{[%clk 00:01:45]} {[%emt 00:00:07]} 24. Nxf6 {[%clk 00:00:57]} {[%emt
00:00:04]} Bxf6 {[%clk 00:01:45]} {[%emt 00:00:02]} 25. Qc2 {[%clk 00:00:57]}
{[%emt 00:00:02]} Kg7 {[%clk 00:01:43]} {[%emt 00:00:06]} 26. Rfe1 {[%clk
00:00:54]} {[%emt 00:00:06]} h5 {[%clk 00:01:41]} {[%emt 00:00:05]} 27. gxh5
{[%clk 00:00:54]} {[%emt 00:00:03]} Rxh5 {[%clk 00:01:41]} {[%emt 00:00:01]} 28.
g3 {[%clk 00:00:43]} {[%emt 00:00:14]} Rdh8 {[%clk 00:01:40]} {[%emt 00:00:04]}
29. Bc6 {[%clk 00:00:40]} {[%emt 00:00:06]} Nd6 {[%clk 00:01:22]} {[%emt
00:00:21]} 30. Bf3 {[%clk 00:00:40]} {[%emt 00:00:02]} Rh2 {[%clk 00:01:18]}
{[%emt 00:00:07]} 31. Bf4 {[%clk 00:00:40]} {[%emt 00:00:02]} Nf5 {[%clk
00:00:42]} {[%emt 00:00:39]} 32. d5 {[%clk 00:00:38]} {[%emt 00:00:05]} Nd4
{[%clk 00:00:41]} {[%emt 00:00:04]} 33. Qe4 {[%clk 00:00:24]} {[%emt 00:00:17]}
e5 {[%clk 00:00:39]} {[%emt 00:00:05]} 34. Be3 {[%clk 00:00:19]} {[%emt
00:00:07]} Nxf3+ 35. Qxf3 {[%clk 00:00:19]} e4 {[%clk 00:00:35]} 36. Bh6+
{[%clk 00:00:15]} {[%emt 00:00:07]} R8xh6 {[%clk 00:00:31]} {[%emt 00:00:07]}
37. Rxe4 {[%clk 00:00:15]} Rh1+ {[%clk 00:00:30]} {[%emt 00:00:04]} 0-1

[Event "15e Open International de Quenza"]
[Site "Quenza"]
[Date "2026.07.05"]
[Round "6.9"]
[White "KOSTENIUK, Alexandra"]
[Black "TERNAULT, Mathieu"]
[Result "1-0"]
[TimeControl "5min+3s"]
[WhiteTitle "GM"]
[BlackTitle "FM"]
[WhiteFideId "-"]
[BlackFideId "-"]
[WhiteElo "2392"]
[BlackElo "2188"]

1. e4 {[%clk 00:05:03]} {[%emt 00:04:48]} e6 {[%clk 00:05:03]} {[%emt
00:00:02]} 2. d4 {[%clk 00:05:03]} {[%emt 00:00:01]} d5 {[%clk 00:05:03]} 3.
exd5 {[%clk 00:05:03]} {[%emt 00:00:02]} exd5 {[%clk 00:05:03]} 4. Bf4 {[%clk
00:05:03]} {[%emt 00:00:01]} Bd6 {[%clk 00:05:03]} {[%emt 00:00:02]} 5. Qd2
{[%clk 00:05:03]} Nf6 {[%clk 00:05:00]} {[%emt 00:00:06]} 6. Nc3 {[%clk
00:05:03]} O-O {[%clk 00:04:59]} {[%emt 00:00:03]} 7. Nge2 {[%clk 00:05:03]}
{[%emt 00:00:03]} c6 {[%clk 00:04:59]} {[%emt 00:00:03]} 8. f3 {[%clk
00:04:58]} {[%emt 00:00:09]} a5 {[%clk 00:04:44]} {[%emt 00:00:18]} 9. g4
{[%clk 00:04:47]} {[%emt 00:00:13]} Ne8 {[%clk 00:04:26]} {[%emt 00:00:21]} 10.
Ng3 {[%clk 00:04:32]} {[%emt 00:00:19]} Bxf4 {[%clk 00:04:06]} {[%emt
00:00:23]} 11. Qxf4 {[%clk 00:04:32]} {[%emt 00:00:01]} Qd6 {[%clk 00:04:06]}
{[%emt 00:00:02]} 12. Qd2 {[%clk 00:04:03]} {[%emt 00:00:31]} b5 {[%clk
00:03:50]} {[%emt 00:00:20]} 13. Nce2 {[%clk 00:04:03]} {[%emt 00:00:01]} b4
{[%clk 00:03:32]} {[%emt 00:00:20]} 14. h4 {[%clk 00:04:03]} {[%emt 00:00:03]}
Ra7 {[%clk 00:02:56]} {[%emt 00:00:40]} 15. h5 {[%clk 00:03:59]} {[%emt
00:00:07]} h6 {[%clk 00:02:50]} {[%emt 00:00:10]} 16. O-O-O {[%clk 00:03:46]}
{[%emt 00:00:15]} f6 {[%clk 00:02:25]} {[%emt 00:00:29]} 17. Nf4 {[%clk
00:03:41]} {[%emt 00:00:07]} a4 {[%clk 00:02:22]} {[%emt 00:00:06]} 18. Bd3
{[%clk 00:03:32]} {[%emt 00:00:12]} Rff7 {[%clk 00:01:29]} {[%emt 00:00:56]} 19.
Nf5 {[%clk 00:03:15]} {[%emt 00:00:20]} Bxf5 {[%clk 00:01:22]} {[%emt
00:00:11]} 20. Bxf5 {[%clk 00:03:15]} {[%emt 00:00:01]} Nc7 {[%clk 00:01:01]}
{[%emt 00:00:25]} 21. Rhe1 {[%clk 00:03:10]} {[%emt 00:00:07]} Nd7 {[%clk
00:00:54]} {[%emt 00:00:11]} 22. Be6 {[%clk 00:02:49]} {[%emt 00:00:24]} b3
{[%clk 00:00:24]} {[%emt 00:00:33]} 23. Bxf7+ {[%clk 00:02:24]} {[%emt
00:00:27]} Kxf7 {[%clk 00:00:24]} {[%emt 00:00:01]} 24. a3 {[%clk 00:02:19]}
{[%emt 00:00:08]} Nf8 {[%clk 00:00:13]} {[%emt 00:00:14]} 25. Nd3 {[%clk
00:02:01]} {[%emt 00:00:21]} bxc2 {[%clk 00:00:13]} {[%emt 00:00:01]} 26. Qxc2
{[%clk 00:02:01]} {[%emt 00:00:04]} Nb5 {[%clk 00:00:09]} {[%emt 00:00:07]} 27.
Nc5 {[%clk 00:02:01]} {[%emt 00:00:02]} Kg8 {[%clk 00:00:08]} {[%emt 00:00:04]}
28. Qd2 {[%clk 00:01:42]} {[%emt 00:00:21]} Ra8 {[%clk 00:00:08]} {[%emt
00:00:02]} 29. f4 {[%emt 00:00:04]} Rb8 30. g5 {[%clk 00:01:38]} {[%emt
00:00:06]} fxg5 {[%emt 00:00:02]} 31. fxg5 hxg5 {[%clk 00:00:07]} {[%emt
00:00:04]} 32. Re5 {[%clk 00:01:32]} {[%emt 00:00:09]} Qf6 {[%clk 00:00:05]}
{[%emt 00:00:05]} 33. Qxg5 {[%clk 00:01:25]} {[%emt 00:00:09]} Qf2 {[%clk
00:00:05]} 34. Re7 {[%clk 00:01:16]} {[%emt 00:00:12]} Qf6 {[%clk 00:00:05]}
{[%emt 00:00:03]} 35. Qxf6 {[%clk 00:01:16]} {[%emt 00:00:04]} gxf6 {[%clk
00:00:05]} 36. h6 {[%clk 00:01:01]} {[%emt 00:00:17]} Nd6 {[%clk 00:00:05]}
{[%emt 00:00:01]} 37. Rg1+ {[%clk 00:00:55]} {[%emt 00:00:09]} Kh8 {[%clk
00:00:05]} 38. h7 {[%clk 00:00:54]} {[%emt 00:00:03]} Nf5 {[%emt 00:00:05]} 39.
Rg8# {[%emt 00:00:01]} 1-0

[Event "15e Open International de Quenza"]
[Site "Quenza"]
[Date "2026.07.05"]
[Round "6.6"]
[White "PIERI, Pierre-Louis"]
[Black "TERRIEUX, Kevin"]
[Result "1/2-1/2"]
[TimeControl "5min+3s"]
[WhiteTitle "-"]
[BlackTitle "IM"]
[WhiteFideId "-"]
[BlackFideId "-"]
[WhiteElo "2236"]
[BlackElo "2451"]

1. e4 {[%clk 00:05:03]} c5 {[%clk 00:05:03]} {[%emt 00:00:01]} 2. Nc3 {[%clk
00:05:03]} {[%emt 00:00:03]} Nc6 {[%clk 00:05:03]} {[%emt 00:00:02]} 3. Bb5
{[%clk 00:05:03]} {[%emt 00:00:01]} g6 {[%clk 00:05:03]} {[%emt 00:00:01]} 4.
Bxc6 {[%clk 00:05:03]} {[%emt 00:00:03]} bxc6 {[%clk 00:05:03]} {[%emt
00:00:03]} 5. d3 {[%clk 00:04:52]} {[%emt 00:00:14]} Bg7 {[%clk 00:05:03]}
{[%emt 00:00:02]} 6. f4 {[%clk 00:04:41]} {[%emt 00:00:14]} c4 {[%clk
00:05:03]} {[%emt 00:00:02]} 7. d4 {[%clk 00:03:42]} {[%emt 00:01:02]} d5
{[%clk 00:04:54]} {[%emt 00:00:13]} 8. e5 {[%clk 00:03:42]} {[%emt 00:00:02]}
Nh6 {[%clk 00:04:53]} {[%emt 00:00:03]} 9. h3 {[%clk 00:03:18]} {[%emt
00:00:26]} Nf5 {[%clk 00:04:52]} {[%emt 00:00:04]} 10. Nf3 {[%clk 00:02:50]}
{[%emt 00:00:31]} Ng3 {[%clk 00:04:14]} {[%emt 00:00:42]} 11. Rg1 {[%clk
00:02:48]} {[%emt 00:00:04]} h5 {[%clk 00:04:14]} {[%emt 00:00:02]} 12. Be3
{[%clk 00:02:42]} {[%emt 00:00:09]} Nf5 {[%clk 00:03:51]} {[%emt 00:00:26]} 13.
Bf2 {[%clk 00:02:36]} {[%emt 00:00:09]} h4 {[%clk 00:03:51]} {[%emt 00:00:02]}
14. Qd2 {[%clk 00:02:22]} {[%emt 00:00:18]} Rb8 {[%clk 00:03:51]} {[%emt
00:00:03]} 15. b3 {[%clk 00:01:52]} {[%emt 00:00:33]} e6 {[%clk 00:03:04]}
{[%emt 00:00:50]} 16. bxc4 {[%clk 00:01:43]} {[%emt 00:00:12]} Bf8 {[%clk
00:03:04]} {[%emt 00:00:02]} 17. c5 {[%clk 00:01:25]} {[%emt 00:00:21]} Ba6
{[%clk 00:03:00]} {[%emt 00:00:06]} 18. Rb1 {[%clk 00:01:22]} {[%emt 00:00:07]}
Be7 {[%clk 00:02:52]} {[%emt 00:00:11]} 19. Qc1 {[%clk 00:01:06]} {[%emt
00:00:20]} Rxb1 {[%clk 00:02:32]} {[%emt 00:00:23]} 20. Qxb1 {[%clk 00:01:04]}
{[%emt 00:00:05]} O-O {[%clk 00:02:01]} {[%emt 00:00:34]} 21. Kd2 {[%clk
00:01:04]} Qc7 {[%clk 00:01:28]} {[%emt 00:00:35]} 22. Qb4 {[%clk 00:00:50]}
{[%emt 00:00:17]} Rb8 {[%clk 00:01:28]} {[%emt 00:00:02]} 23. Qa3 {[%clk
00:00:50]} Bc4 {[%clk 00:01:24]} {[%emt 00:00:06]} 24. Rb1 {[%clk 00:00:50]}
{[%emt 00:00:02]} Rxb1 {[%clk 00:01:23]} {[%emt 00:00:04]} 25. Nxb1 {[%clk
00:00:50]} {[%emt 00:00:01]} Bf1 {[%clk 00:01:23]} {[%emt 00:00:03]} 26. Ne1
{[%clk 00:00:40]} {[%emt 00:00:13]} Qb7 {[%clk 00:01:23]} {[%emt 00:00:02]} 27.
Nc3 {[%clk 00:00:38]} {[%emt 00:00:06]} Kg7 {[%clk 00:01:12]} {[%emt 00:00:13]}
28. Qb3 {[%clk 00:00:36]} {[%emt 00:00:05]} Qc8 {[%clk 00:01:05]} {[%emt
00:00:09]} 29. Qa4 {[%clk 00:00:36]} {[%emt 00:00:03]} Qc7 {[%clk 00:00:58]}
{[%emt 00:00:09]} 30. Nd1 {[%clk 00:00:33]} {[%emt 00:00:08]} Bb5 {[%clk
00:00:52]} {[%emt 00:00:09]} 31. Qb4 {[%clk 00:00:32]} {[%emt 00:00:04]} Bd8
{[%clk 00:00:52]} {[%emt 00:00:01]} 32. Nd3 {[%clk 00:00:27]} {[%emt 00:00:08]}
Qc8 {[%clk 00:00:43]} {[%emt 00:00:12]} 33. Ne3 {[%clk 00:00:27]} {[%emt
00:00:03]} Qa6 {[%clk 00:00:38]} {[%emt 00:00:07]} 34. Nxf5+ {[%clk 00:00:24]}
{[%emt 00:00:07]} gxf5 {[%clk 00:00:38]} {[%emt 00:00:01]} 35. Qb2 {[%clk
00:00:14]} {[%emt 00:00:13]} Bc4 {[%clk 00:00:38]} {[%emt 00:00:03]} 36. Nb4
{[%clk 00:00:14]} {[%emt 00:00:02]} Ba5 {[%clk 00:00:38]} {[%emt 00:00:02]} 37.
c3 {[%clk 00:00:14]} {[%emt 00:00:01]} Bxb4 {[%clk 00:00:37]} {[%emt 00:00:05]}
38. cxb4 {[%clk 00:00:14]} {[%emt 00:00:03]} Bf1 {[%clk 00:00:37]} {[%emt
00:00:01]} 39. b5 {[%clk 00:00:11]} {[%emt 00:00:07]} Bxb5 {[%clk 00:00:33]}
{[%emt 00:00:07]} 40. Bxh4 {[%emt 00:00:03]} Bf1 {[%clk 00:00:33]} 41. Bf6+
{[%clk 00:00:10]} {[%emt 00:00:04]} Kh7 {[%clk 00:00:29]} {[%emt 00:00:06]} 42.
Ke1 {[%clk 00:00:09]} {[%emt 00:00:04]} Bd3 {[%clk 00:00:22]} {[%emt 00:00:11]}
43. Qb8 {[%clk 00:00:09]} {[%emt 00:00:03]} Qa5+ {[%clk 00:00:19]} {[%emt
00:00:06]} 44. Kf2 {[%clk 00:00:09]} {[%emt 00:00:03]} Qd2+ {[%clk 00:00:19]}
{[%emt 00:00:01]} 45. Kg1 {[%clk 00:00:08]} {[%emt 00:00:04]} Qe3+ {[%clk
00:00:18]} {[%emt 00:00:03]} 46. Kh1 {[%clk 00:00:08]} {[%emt 00:00:01]} Qc1+
{[%clk 00:00:18]} {[%emt 00:00:02]} 47. Kh2 {[%clk 00:00:08]} {[%emt 00:00:01]}
Qxf4+ {[%clk 00:00:17]} {[%emt 00:00:04]} 48. Kh1 {[%clk 00:00:08]} {[%emt
00:00:01]} Qf1+ {[%clk 00:00:10]} {[%emt 00:00:10]} 49. Kh2 {[%clk 00:00:08]}
Qf4+ {[%clk 00:00:09]} {[%emt 00:00:04]} 50. Kh1 {[%clk 00:00:08]} Qf1+ {[%clk
00:00:09]} {[%emt 00:00:03]} 51. Kh2 {[%clk 00:00:08]} Qf4+ {[%clk 00:00:09]}
{[%emt 00:00:02]} 52. Kh1 {[%clk 00:00:08]} Qf1+ {[%clk 00:00:09]} {[%emt
00:00:01]} 1/2-1/2